bitfinex/quotes_ETHUSD_20220213
["timestamp","ask_amount","ask_price","bid_price","bid_amount"]
[1644737832271,1.3171739,2918.6,2917.9,1.39245449]
[1644737832467,0.0109513,2918.2,2917.9,1.39245449]
[1644737833471,0.17370171,2918.6,2917.9,1.69245449]
[1644737833670,0.01095137,2918.2,2918.0,0.85661]
[1644737833872,0.01095137,2918.2,2918.1,0.496]
[1644737834680,0.90094747,2918.6,2918.1,0.496]
[1644737834877,0.01095123,2918.3,2918.1,0.496]
[1644737835723,0.00240171,2918.5,2918.1,0.496]
[1644737836120,0.01095116,2918.3,2918.1,0.496]
[1644737837025,0.00240171,2918.5,2918.1,0.796]
[1644737837224,0.01095116,2918.3,2918.1,2.80914]
[1644737837424,0.01095116,2918.3,2918.2,1.0]
[1644737837625,0.01095116,2918.3,2918.2,1.796]
[1644737838223,0.00240171,2918.8,2918.2,1.796]
[1644737838428,0.00240171,2918.8,2918.3,0.85653]
[1644737838429,0.01095109,2918.4,2918.3,0.85653]
[1644737838624,0.01095109,2918.4,2918.3,1.65253]
[1644737839378,0.00240171,2918.8,2918.3,1.65253]
[1644737839577,0.00240171,2918.8,2918.3,1.35253]
[1644737839778,0.01095095,2918.5,2918.3,1.35253]
[1644737840476,0.01095095,2918.5,2918.3,0.496]
[1644737840677,1.05889315,2918.2,2918.1,1.71314]
[1644737844629,1.05889315,2918.2,2918.1,3.01314]
[1644737844828,1.05889315,2918.2,2918.1,3.80914]
[1644737845028,1.05889315,2918.2,2918.1,23.81914]
[1644737845628,1.05889315,2918.2,2918.1,3.80914]
[1644737845830,1.05889315,2918.2,2918.1,2.20914]
[1644737846870,2.5166572,2918.2,2918.1,2.20914]
[1644737847269,1.05889315,2918.2,2918.1,2.50914]
[1644737849577,2.51661426,2918.2,2918.1,1.71314]
[1644737849779,2.51661426,2918.2,2917.8,1.2029]
[1644737849974,2.51661426,2918.2,2917.5,3.87905419]
[1644737849975,1.45772111,2918.1,2917.5,0.01095419]
[1644737850178,1.45772111,2918.1,2917.4,4.8704]
[1644737850179,0.00240171,2918.0,2917.4,4.8704]
[1644737850422,0.00240171,2918.0,2917.4,0.1713]
[1644737850423,0.17370171,2918.0,2917.4,0.1713]
[1644737850622,1.45772111,2917.9,2917.5,1.140725]
[1644737851426,1.45772111,2917.9,2917.5,1.12977116]
[1644737851622,1.46867259,2917.9,2917.5,1.14072429]
[1644737851822,0.01095148,2917.9,2917.5,1.14072429]
[1644737852623,0.17370171,2918.1,2917.5,1.12977116]
[1644737852825,0.01095148,2917.9,2917.5,1.14072429]
[1644737853123,0.01335319,2917.9,2917.5,1.14072429]
[1644737853929,0.00240171,2917.9,2917.5,1.12977116]
[1644737854173,0.01095148,2917.9,2917.5,0.01095313]
[1644737854975,0.00240171,2918.1,2917.3,3.38503237]
[1644737855375,0.01095148,2917.9,2917.5,0.01095313]
[1644737855977,0.0180177,2917.8,2917.5,0.01095313]
[1644737856279,0.0180177,2917.8,2917.3,3.38503237]
[1644737856485,0.0180177,2917.8,2917.5,0.01095313]
[1644737857477,0.0180177,2917.8,2917.4,1.97519091]
[1644737857681,0.0180177,2917.8,2917.2,0.96623237]
[1644737857934,1.62934773,2917.7,2916.9,0.04725029]
[1644737858131,4.95804773,2917.6,2916.9,0.04382079]
[1644737858333,1.62934773,2917.5,2916.9,0.04382079]
[1644737858530,1.45804773,2917.4,2916.9,0.04382079]
[1644737858731,1.45804773,2917.4,2916.7,0.0034295]
[1644737858732,0.4518,2917.3,2916.7,0.0034295]
[1644737859538,1.147,2917.7,2916.7,0.0034295]
[1644737859835,1.147,2917.7,2916.7,21.5094295]
[1644737860034,1.147,2917.7,2916.8,0.0034295]
[1644737860235,1.147,2917.7,2917.1,0.01094286]
[1644737860534,1.147,2917.7,2917.1,0.86788286]
[1644737860733,0.01799043,2917.7,2917.1,0.86788286]
[1644737860934,1.45802752,2917.6,2917.1,0.86788286]
[1644737861135,1.45802752,2917.6,2917.1,0.85694]
[1644737861434,1.45802752,2917.6,2917.3,0.01094259]
[1644737861683,1.62932752,2917.6,2917.3,0.01094259]
[1644737862072,0.1713,2917.6,2917.3,0.01094259]
[1644737862275,0.1713,2917.6,2917.1,0.85694]
[1644737862675,0.1713,2917.6,2917.3,0.01094252]
[1644737863476,0.1713,2917.6,2917.1,0.85694]
[1644737863681,0.1713,2917.6,2917.3,0.00406268]
[1644737864681,0.1713,2917.6,2917.1,0.85694]
[1644737864882,0.1713,2917.6,2917.3,0.01093555]
[1644737865828,0.1713,2917.6,2917.1,0.85694]
[1644737866028,0.01793588,2917.5,2917.1,0.85694]
[1644737866226,0.01793588,2917.5,2917.3,0.01093555]
[1644737867028,0.01793588,2917.5,2917.1,0.85694]
[1644737867432,0.01793588,2917.5,2917.3,0.01093562]
[1644737868231,0.01793588,2917.5,2917.1,0.85694]
[1644737868632,0.01793588,2917.5,2917.3,0.01093562]
[1644737869492,0.01793588,2917.5,2917.1,0.85694]
[1644737869675,0.01793588,2917.5,2917.3,0.01093562]
[1644737870479,0.1892086,2917.7,2917.3,0.01093562]
[1644737870679,0.1892086,2917.7,2917.1,0.85694]
[1644737870877,0.1892086,2917.7,2917.3,0.01093562]
[1644737871879,0.1892086,2917.7,2917.1,0.85694]
[1644737872183,0.061766,2917.5,2917.4,0.01093548]
[1644737873018,0.061766,2917.5,2917.1,0.85694]
[1644737873419,0.061766,2917.5,2917.3,0.01093555]
[1644737874222,0.061766,2917.5,2917.1,0.85694]
[1644737874625,0.061766,2917.5,2917.3,0.01093562]
[1644737875523,0.07970188,2917.5,2917.1,0.85694]
[1644737875722,0.07970188,2917.5,2917.3,0.01093562]
[1644737876772,0.07970188,2917.5,2917.1,0.85694]
[1644737876974,0.07970188,2917.5,2917.3,0.01093562]
[1644737877982,0.07970188,2917.5,2917.1,0.85694]
[1644737878181,0.07970188,2917.5,2917.3,0.01093562]
[1644737879082,0.07970188,2917.5,2917.1,0.85694]
[1644737879282,0.07970188,2917.5,2917.3,0.01093562]
[1644737880417,0.0786727,2917.5,2917.0,0.0034295]
[1644737880620,0.0786727,2917.5,2917.3,0.01093562]
[1644737881526,0.0786727,2917.5,2917.0,0.0034295]
[1644737881725,0.0786727,2917.5,2917.3,0.01093562]
[1644737882633,0.0786727,2917.5,2917.0,0.0034295]
[1644737886480,0.0786727,2917.5,2917.1,0.01093097]
[1644737887589,0.0786727,2917.5,2917.0,0.0034295]
[1644737887782,0.0786727,2917.5,2917.2,0.0109309]
[1644737888731,0.0786727,2917.5,2917.0,0.0034295]
[1644737888930,0.0786727,2917.5,2917.2,0.01093083]
[1644737889935,0.0786727,2917.5,2917.0,0.0034295]
[1644737890138,0.0786727,2917.5,2917.2,0.01093083]
[1644737891137,0.0786727,2917.5,2917.0,0.0034295]
[1644737891338,1.45807247,2917.4,2917.2,0.01093083]
[1644737892378,1.45807247,2917.4,2917.0,0.0034295]
[1644737892577,1.45807247,2917.4,2917.2,0.0109309]
[1644737893478,1.45807247,2917.4,2917.0,0.0034295]
[1644737893882,1.45807247,2917.4,2917.2,0.0109309]
[1644737894677,1.45807247,2917.4,2917.0,0.0034295]
[1644737894879,1.45807247,2917.4,2917.2,0.0109309]
[1644737895721,0.01788132,2917.3,2917.2,0.0109309]
[1644737895920,1.47595379,2917.3,2917.0,0.0034295]
[1644737896126,1.47595379,2917.3,2917.2,0.0109309]
[1644737896127,0.01788132,2917.3,2917.2,0.0109309]
[1644737896526,1.47597782,2917.3,2917.2,0.0109309]
[1644737896930,0.01788132,2917.3,2917.2,0.0109309]
[1644737897129,0.01788132,2917.3,2917.0,1.7172095]
[1644737897327,0.01788132,2917.3,2917.1,0.01093097]
[1644737898327,0.01788132,2917.3,2917.0,1.7172095]
[1644737898528,0.01788132,2917.3,2917.1,0.01093104]
[1644737899583,0.01788132,2917.3,2917.0,1.7172095]
[1644737899886,0.01788132,2917.3,2917.1,0.01093104]
[1644737900284,0.01788132,2917.3,2917.1,1.72469104]
[1644737900488,0.07859086,2917.5,2917.1,0.86781104]
[1644737900685,1.45801676,2917.4,2917.1,0.8603095]
[1644737900885,1.45801676,2917.4,2917.1,0.87124054]
[1644737901087,1.45699994,2917.4,2917.1,0.87124054]
[1644737901889,1.45699994,2917.4,2917.1,0.8603095]
[1644737902289,1.45699994,2917.4,2917.1,0.87124047]
[1644737903226,1.45699994,2917.4,2917.1,0.8603095]
[1644737903423,1.45699994,2917.4,2917.1,0.8643676]
[1644737904229,1.45699994,2917.4,2917.1,0.8603095]
[1644737904528,1.45699994,2917.4,2917.1,0.8643676]
[1644737905533,1.45699994,2917.4,2917.3,0.0288506]
[1644737907286,1.62829994,2917.4,2917.3,0.0288506]
[1644737907479,1.62829994,2917.4,2916.7,0.0034295]
[1644737907480,0.04677733,2917.2,2916.7,0.0034295]
[1644737907881,0.1713,2917.1,2916.7,0.0034295]
[1644737908085,1.0475589,2917.2,2916.7,0.0034295]
[1644737909385,1.0475589,2917.2,2916.8,0.00405852]
[1644737909987,3.25123112,2917.1,2916.8,0.00405852]
[1644737910430,1.0475589,2917.2,2916.7,0.0034295]
[1644737910636,1.0475589,2917.2,2916.8,0.01092441]
[1644737911033,3.2664388,2917.1,2916.8,0.01092441]
[1644737911233,0.1713,2917.1,2916.8,0.01092441]
[1644737911432,0.1713,2917.1,2916.7,0.0034295]
[1644737911831,0.1713,2917.1,2916.8,0.01092441]
[1644737912032,3.33037203,2917.1,2916.8,0.01092441]
[1644737912638,3.33037203,2917.1,2916.7,0.0034295]
[1644737913037,3.33037203,2917.1,2916.8,0.01092441]
[1644737913243,1.0475589,2917.2,2916.8,0.01092441]
[1644737913838,1.0475589,2917.2,2916.7,0.0034295]
[1644737914297,1.0475589,2917.2,2916.9,0.01092434]
[1644737915197,1.0475589,2917.2,2916.7,0.0034295]
[1644737915399,3.48160117,2917.1,2916.9,0.01092428]
[1644737915598,0.04677733,2917.2,2916.9,0.01092428]
[1644737915803,0.01346913,2917.0,2916.9,0.01092428]
[1644737916399,0.01346913,2917.0,2916.7,0.0034295]
[1644737916598,0.01346913,2917.0,2916.8,0.01092441]
[1644737917600,0.01346913,2917.0,2916.4,0.0034295]
[1644737917926,0.01346913,2917.0,2916.8,0.01092448]
[1644737918728,0.01346913,2917.0,2916.4,0.0034295]
[1644737918926,0.01346913,2917.0,2916.8,0.01092448]
[1644737919933,0.01346913,2917.0,2916.4,0.0034295]
[1644737920230,0.01346913,2917.0,2916.8,0.01092448]
[1644737921230,0.01346913,2917.0,2916.4,0.0034295]
[1644737921433,0.01346913,2917.0,2916.8,0.01092448]
[1644737922379,0.01346913,2917.0,2916.4,0.0034295]
[1644737922581,0.01346913,2917.0,2916.8,0.01092448]
[1644737923580,0.01346913,2917.0,2916.4,0.0032789]
[1644737923782,0.01346913,2917.0,2916.8,0.01092448]
[1644737924782,0.01346913,2917.0,2916.4,0.0032789]
[1644737924982,0.01346913,2917.0,2916.8,0.01092448]
[1644737926033,0.01346913,2917.0,2916.4,0.0032789]
[1644737926233,0.01346913,2917.0,2916.8,0.01092448]
[1644737927230,0.01346913,2917.0,2916.4,0.0032789]
[1644737927429,0.01346913,2917.0,2916.8,0.01092448]
[1644737928433,0.01346913,2917.0,2916.4,0.0032789]
[1644737928637,0.01346913,2917.0,2916.8,0.01092448]
[1644737929483,0.01346913,2917.0,2916.4,0.0032789]
[1644737929879,0.01346913,2917.0,2916.8,0.01092448]
[1644737930682,0.01346913,2917.0,2916.4,0.0032789]
[1644737931083,0.01346913,2917.0,2916.8,0.01092448]
[1644737931884,0.01346913,2917.0,2916.4,0.0032789]
[1644737932285,0.01346913,2917.0,2916.8,0.01092448]
[1644737933123,0.01346913,2917.0,2916.4,0.0032789]
[1644737933324,0.01346913,2917.0,2916.8,0.01092448]
[1644737934330,0.01346913,2917.0,2916.4,0.0032789]
[1644737934528,0.01346913,2917.0,2916.8,0.01092448]
[1644737935533,0.01346913,2917.0,2916.4,0.0032789]
[1644737935733,0.01346913,2917.0,2916.8,0.01092448]
[1644737936539,0.01245614,2917.0,2916.8,0.01092448]
[1644737936775,0.01245614,2917.0,2916.4,0.0032789]
[1644737936976,0.01245614,2917.0,2916.8,0.01092448]
[1644737937977,0.01245614,2917.0,2916.4,0.0032789]
[1644737938177,0.01245614,2917.0,2916.8,0.01092448]
[1644737939185,0.01245614,2917.0,2916.4,0.0032789]
[1644737939381,0.01245614,2917.0,2916.8,0.01092448]
[1644737940429,0.01245614,2917.0,2916.4,0.0032789]
[1644737940630,0.01245614,2917.0,2916.8,0.01092448]
[1644737941528,0.01245614,2917.0,2916.4,0.0032789]
[1644737941735,0.01245614,2917.0,2916.8,0.01092448]
[1644737942729,0.01245614,2917.0,2916.7,0.0032789]
[1644737943130,0.01245614,2917.0,2916.8,0.01092448]
[1644737943930,0.01245614,2917.0,2916.7,0.0032789]
[1644737944178,0.01245614,2917.0,2916.8,0.01092448]
[1644737945284,0.01245614,2917.0,2916.7,0.0032789]
[1644737945488,0.01245614,2917.0,2916.8,0.01092448]
[1644737946386,0.01245614,2917.0,2916.7,0.0032789]
[1644737946588,0.01245614,2917.0,2916.8,0.01092448]
[1644737947491,0.01245614,2917.0,2916.7,0.0032789]
[1644737947925,0.01245614,2917.0,2916.8,0.01092448]
[1644737948732,0.01245614,2917.0,2916.7,0.0032789]
[1644737948933,0.01245614,2917.0,2916.8,0.01092448]
[1644737949537,1.45829534,2916.9,2916.8,0.01092448]
[1644737949939,1.45829534,2916.9,2916.2,0.0032789]
[1644737950137,0.03277344,2916.7,2916.0,0.0032789]
[1644737950337,1.62959534,2916.6,2916.3,0.04370477]
[1644737950537,1.45829534,2916.5,2916.3,0.04370477]
[1644737950737,0.98144481,2916.4,2916.3,0.04370477]
[1644737950937,2.43974015,2916.4,2916.3,0.04370477]
[1644737951138,1.45829534,2916.4,2916.0,0.0032789]
[1644737951337,0.1713,2916.6,2916.2,0.01092525]
[1644737951539,1.4585486,2916.5,2916.2,0.01092525]
[1644737952388,1.4585486,2916.5,2915.8,0.0032789]
[1644737952389,2.48221423,2916.5,2915.8,0.0032789]
[1644737952581,1.02366563,2916.5,2916.2,0.01092525]
[1644737953581,1.02366563,2916.5,2915.8,0.0032789]
[1644737953784,1.02366563,2916.5,2916.2,0.01092525]
[1644737954387,3.22898724,2916.4,2916.2,0.01092525]
[1644737954587,1.02366563,2916.5,2916.2,0.01092525]
[1644737954788,1.02366563,2916.5,2915.8,0.0032789]
[1644737954991,1.02366563,2916.5,2916.2,0.01089046]
[1644737955930,0.01254143,2916.4,2915.8,0.0032789]
[1644737956131,0.01254143,2916.4,2916.2,0.01089039]
[1644737957134,3.2648465,2916.4,2915.8,0.0032789]
[1644737957334,3.2648465,2916.4,2916.2,0.01089046]
[1644737958337,3.2648465,2916.4,2915.8,0.0032789]
[1644737958737,3.23990867,2916.4,2916.2,0.01092532]
[1644737958936,3.27587748,2916.4,2916.2,0.01092532]
[1644737959181,3.29508922,2916.4,2916.2,0.01092532]
[1644737959589,3.29508922,2916.4,2915.8,0.0032789]
[1644737959787,3.29508922,2916.4,2916.2,0.01092532]
[1644737960587,0.01254143,2916.4,2916.2,0.01092532]
[1644737960791,3.28650216,2916.4,2915.8,0.0032789]
[1644737960990,3.28650216,2916.4,2916.2,0.01092532]
[1644737961192,0.01254143,2916.4,2916.2,0.01092532]
[1644737961991,0.01254143,2916.4,2916.0,0.0032789]
[1644737962189,0.01254143,2916.4,2916.2,0.01092532]
[1644737962692,3.29908492,2916.4,2916.2,0.01092532]
[1644737963132,3.29908492,2916.4,2915.7,0.0032789]
[1644737963334,3.29908492,2916.4,2916.2,0.01092532]
[1644737963532,3.27721622,2916.4,2916.2,0.01092532]
[1644737963732,0.01254143,2916.4,2916.2,0.01092532]
[1644737964337,0.01254143,2916.4,2915.7,0.0032789]
[1644737964537,0.01254143,2916.4,2916.2,0.01092532]
[1644737965639,0.01254143,2916.4,2915.7,0.0032789]
[1644737965838,0.01254143,2916.4,2916.2,0.01092532]
[1644737967385,5.01254143,2916.4,2916.2,0.01092532]
[1644737967581,5.01254143,2916.4,2915.7,0.04370782]
[1644737967582,3.15,2916.3,2915.7,0.04370782]
[1644737967785,0.1713,2916.3,2915.7,0.04370782]
[1644737967981,0.1713,2916.3,2915.3,0.0032789]
[1644737968181,1.11538315,2915.9,2915.3,0.0032789]
[1644737969587,4.1742248,2915.8,2915.3,0.0032789]
[1644737969792,4.3455248,2915.8,2915.3,0.0032789]
[1644737969987,4.3455248,2915.8,2915.1,0.0032789]
[1644737970186,4.3455248,2915.8,2914.8,0.0032789]
[1644737971035,9.3455248,2915.8,2914.8,0.0032789]
[1644737971235,9.3455248,2915.8,2914.6,0.25]
[1644737971443,5.0,2915.0,2914.2,0.01341285]
[1644737971642,5.0,2915.0,2913.9,1.244]
[1644737971643,0.1715,2914.9,2913.9,1.244]
[1644737971848,0.6675,2914.9,2914.6,0.04367503]
[1644737972036,0.90243011,2914.8,2914.6,0.04367503]
[1644737972243,0.1715,2914.7,2914.6,0.04367503]
[1644737972440,3.5,2915.5,2914.6,0.04367503]
[1644737972441,4.1675,2915.5,2914.6,0.04367503]
[1644737972634,4.1675,2915.5,2914.6,0.08403309]
[1644737972635,1.45927702,2915.4,2914.6,0.08403309]
[1644737972834,1.45927702,2915.4,2914.6,0.04035806]
[1644737973039,1.45927702,2915.4,2914.9,0.01091733]
[1644737973436,1.16000817,2915.0,2914.5,0.04551968]
[1644737973834,1.16000817,2915.0,2914.6,0.04035806]
[1644737974034,3.5,2915.4,2914.6,0.04035806]
[1644737974288,0.6675,2915.5,2914.6,0.04035806]
[1644737974289,1.45928569,2915.3,2914.6,0.04035806]
[1644737974594,3.23766499,2915.2,2914.4,0.04149491]
[1644737974787,5.6675,2915.5,2914.4,0.04149491]
[1644737974788,3.89877892,2915.4,2914.4,0.04149491]
[1644737974987,1.63083535,2915.3,2914.4,0.04149491]
[1644737975188,1.63083535,2915.3,2914.0,0.0437686]
[1644737975189,5.24544238,2915.2,2914.0,0.0437686]
[1644737975389,0.1715,2915.1,2914.0,0.0437686]
[1644737975597,0.02518975,2914.7,2914.0,0.0437686]
[1644737975789,0.02518975,2914.7,2914.1,0.83742236]
[1644737976189,0.02518975,2914.7,2914.2,0.04263176]
[1644737976690,0.02518975,2914.7,2914.3,0.00403594]
[1644737977088,0.02518975,2914.7,2914.4,0.04149491]
[1644737977932,0.03610668,2914.7,2914.4,0.05241312]
[1644737978137,0.03610668,2914.7,2914.4,0.01091821]
[1644737978333,0.03610668,2914.7,2914.5,0.04092649]
[1644737978733,0.02518975,2914.7,2914.5,0.04092649]
[1644737979134,0.03610661,2914.7,2914.4,0.01091832]
[1644737979539,0.03610661,2914.7,2914.5,0.04092649]
[1644737979938,0.02518975,2914.7,2914.5,0.04092649]
[1644737980341,0.03610661,2914.7,2914.5,0.04092649]
[1644737980649,0.03610661,2914.7,2914.5,3.63785314]
[1644737980843,0.03610661,2914.7,2914.6,1.496]
[1644737981043,0.03610661,2914.7,2914.6,1.53635806]
[1644737981241,0.02518975,2914.7,2914.6,1.53635806]
[1644737981444,0.02518975,2914.7,2914.6,4.14609513]
[1644737981694,0.02518975,2914.7,2914.6,0.53635806]
[1644737981884,0.1715,2916.0,2914.9,0.85757]
[1644737982086,0.1715,2916.0,2914.9,2.89974]
[1644737982286,0.1715,2916.0,2915.0,1.0]
[1644737982485,4.3093,2916.1,2915.1,0.496]
[1644737982685,1.2346,2916.1,2915.1,0.496]
[1644737982885,1.2346,2916.1,2915.7,1.02867683]
[1644737983088,3.78757344,2916.7,2915.7,1.02867683]
[1644737983089,3.5,2916.6,2915.7,1.02867683]
[1644737983293,3.78757344,2916.7,2915.7,1.02867683]
[1644737983294,3.53277344,2916.7,2915.7,1.02867683]
[1644737983485,0.03277344,2916.7,2915.7,1.02867683]
[1644737984493,3.53277344,2916.7,2915.7,1.02867683]
[1644737984894,0.03277344,2916.7,2915.7,1.02867683]
[1644737985092,0.01091466,2916.3,2915.7,1.02867683]
[1644737986133,0.1713,2916.6,2915.7,1.02867683]
[1644737986338,0.1713,2916.6,2915.3,5.1754]
[1644737986339,0.01091494,2916.1,2915.3,5.1754]
[1644737986537,0.01091494,2916.1,2915.4,0.00323518]
[1644737987338,1.14075664,2916.2,2915.4,1.14894899]
[1644737987540,0.01091528,2915.9,2915.4,1.14894899]
[1644737987939,0.01091528,2915.9,2915.4,0.00323518]
[1644737988138,0.01091528,2915.9,2915.2,0.05941389]
[1644737988542,0.1713,2916.6,2915.2,0.05941389]
[1644737988741,0.1713,2916.6,2915.3,0.85752]
[1644737988742,0.01091555,2915.7,2915.3,0.85752]
[1644737988939,0.01091555,2915.7,2915.4,0.00323518]
[1644737989190,0.01091555,2915.7,2915.4,1.16032553]
[1644737989386,0.01091555,2915.7,2915.4,1.16356071]
[1644737989587,0.1713,2916.4,2915.4,1.16356071]
[1644737989785,0.1713,2916.5,2915.4,1.16356071]
[1644737989987,0.01091555,2915.7,2915.4,1.16356071]
[1644737990587,0.01091555,2915.7,2915.5,0.03353057]
[1644737990787,3.39897034,2916.3,2915.5,0.03353057]
[1644737990986,3.41323037,2916.3,2915.5,0.03353057]
[1644737991194,0.01091555,2915.7,2915.5,0.03353057]
[1644737991989,0.1713,2916.3,2915.5,0.03353057]
[1644737992190,0.1713,2916.6,2915.5,0.03353057]
[1644737992389,0.01091548,2915.7,2915.5,0.03353057]
[1644737993038,0.01091548,2915.7,2915.5,3.45585432]
[1644737993243,0.1713,2916.6,2915.6,0.496]
[1644737993439,0.03277344,2916.7,2916.1,1.04296774]
[1644737994641,0.01091439,2916.5,2916.1,1.04296774]
[1644737995643,0.03277344,2916.7,2916.1,1.04296774]
[1644737995845,0.01091452,2916.4,2916.1,1.04296774]
[1644737996886,0.03277344,2916.7,2916.1,1.04296774]
[1644737997087,0.01091459,2916.4,2916.1,1.04296774]
[1644737997288,0.01091459,2916.4,2916.2,0.85728]
[1644737997785,0.01091459,2916.4,2916.1,1.04296774]
[1644737997989,0.03277344,2916.7,2916.1,1.04296774]
[1644737998188,0.00691091,2916.4,2916.1,1.04296774]
[1644737999189,0.03277344,2916.7,2916.1,1.04296774]
[1644737999398,0.03277344,2916.7,2916.2,3.08773006]
[1644737999399,0.00691091,2916.4,2916.2,3.08773006]
[1644738000434,0.03277344,2916.7,2916.2,3.13756633]
[1644738000837,0.01091001,2916.4,2916.2,3.13756633]
[1644738001640,0.03277344,2916.7,2916.2,3.13756633]
[1644738001836,0.01091001,2916.4,2916.2,3.08091361]
[1644738002937,0.03277344,2916.7,2916.2,3.08091361]
[1644738003140,0.01091001,2916.4,2916.2,3.08091361]
[1644738003340,0.01091001,2916.4,2916.2,0.04983627]
[1644738003539,0.01091001,2916.4,2916.2,3.11905114]
[1644738003941,0.00946609,2916.4,2916.2,3.11905114]
[1644738004193,0.01091001,2916.4,2916.2,3.11905114]
[1644738004385,0.01091001,2916.4,2916.2,3.05831432]
[1644738005287,0.03277344,2916.7,2916.6,0.92739066]
[1644738006990,0.03277344,2916.7,2916.6,4.22039303]
[1644738007189,0.03277344,2916.7,2916.6,4.46662067]
[1644738007395,0.03277344,2916.7,2916.6,5.26262067]
[1644738007592,0.04677733,2917.2,2916.7,4.05]
[1644738007791,0.04677733,2917.2,2916.7,4.546]
[1644738008037,0.01090953,2916.8,2916.7,4.546]
[1644738008438,0.01090953,2916.8,2916.7,5.546]
[1644738008738,0.01090953,2916.8,2916.7,7.25979]
[1644738008937,0.04677733,2917.2,2916.7,7.25979]
[1644738009138,0.0105766,2916.9,2916.8,0.3]
[1644738009346,0.0105766,2916.9,2916.8,0.796]
[1644738009541,0.0105766,2916.9,2916.8,4.31968147]
[1644738010145,0.04677733,2917.2,2916.8,5.31968147]
[1644738010345,0.01057647,2917.0,2916.9,1.0]
[1644738010545,0.04677733,2917.2,2917.1,0.85685]
[1644738010745,0.04677733,2917.2,2917.1,5.29135883]
[1644738010944,0.04677733,2917.2,2917.1,7.57479853]
[1644738011345,0.04677733,2917.2,2917.1,6.71794853]
[1644738011784,0.04677733,2917.2,2917.1,6.42198468]
[1644738012786,0.04677733,2917.2,2917.1,6.12198468]
[1644738012986,0.04677733,2917.2,2917.1,6.42198468]
[1644738013386,0.01035482,2917.3,2917.2,4.05]
[1644738013590,0.17515393,2918.3,2917.2,7.85152516]
[1644738013789,0.17515393,2918.3,2917.4,0.85684]
[1644738014087,0.04141107,2917.9,2917.5,3.180625]
[1644738014692,0.04141107,2917.9,2917.3,1.0]
[1644738014889,3.3746803,2918.5,2917.6,0.93106461]
[1644738014890,0.1713,2918.1,2917.6,0.93106461]
[1644738015093,0.01035417,2917.8,2917.6,0.93106461]
[1644738016035,0.00385393,2918.1,2917.6,0.93106461]
[1644738016233,0.0103746,2917.8,2917.7,0.85683]
[1644738017338,0.00385393,2918.1,2917.7,0.85683]
[1644738017539,0.00385393,2918.1,2917.6,0.93106461]
[1644738017540,0.01037454,2917.9,2917.6,0.93106461]
[1644738018439,0.00385393,2918.1,2917.6,0.93106461]
[1644738018641,0.01037454,2917.9,2917.6,0.93106461]
[1644738019292,0.01037454,2917.9,2917.3,1.3]
[1644738019494,0.01037454,2917.9,2917.3,1.6]
[1644738019694,0.00385393,2918.1,2917.3,1.6]
[1644738019893,0.0103722,2917.7,2917.4,0.85691]
[1644738020192,0.0103722,2917.7,2917.3,1.6]
[1644738020890,0.02947646,2917.8,2917.3,1.6]
[1644738021091,0.01037232,2917.6,2917.4,0.88100941]
[1644738021495,0.01037232,2917.6,2917.4,1.73791941]
[1644738022092,0.02947646,2917.8,2917.4,1.73791941]
[1644738022299,0.01037232,2917.6,2917.4,1.73791941]
[1644738023330,0.02947646,2917.8,2917.4,1.73791941]
[1644738023531,0.01037269,2917.6,2917.4,1.73791941]
[1644738024131,0.01037269,2917.6,2917.4,2.59472941]
[1644738024338,0.01037269,2917.6,2917.5,4.11396823]
[1644738024534,0.02947646,2917.8,2917.5,4.90996823]
[1644738024735,0.01037269,2917.6,2917.5,4.90996823]
[1644738025436,0.01037269,2917.6,2917.5,2.096]
[1644738025634,0.02947646,2917.8,2917.5,2.096]
[1644738025835,0.02465509,2917.7,2917.5,2.096]
[1644738026434,0.02465509,2917.7,2917.5,4.84730391]
[1644738026689,0.02465509,2917.7,2917.5,5.0193952]
[1644738026881,0.00385393,2918.7,2917.6,6.77142718]
[1644738027083,0.00385393,2918.7,2917.9,0.85664]
[1644738027084,0.04148385,2918.2,2917.9,0.85664]
[1644738027285,0.04148385,2918.2,2918.0,3.31365799]
[1644738027588,0.04148385,2918.2,2918.0,0.496]
[1644738027881,0.04148385,2918.2,2918.1,1.6]
[1644738028082,0.17515393,2919.0,2918.1,3.32167012]
[1644738028281,0.02760343,2918.7,2918.2,2.04323189]
[1644738028481,1.4578739,2918.6,2918.2,1.0]
[1644738028683,1.4578739,2918.6,2918.3,0.98351169]
[1644738028983,1.46172783,2918.6,2918.3,1.28351169]
[1644738029387,1.4578739,2918.5,2918.3,1.28351169]
[1644738029586,1.4578739,2918.4,2918.3,1.28351169]
[1644738029785,1.4578739,2918.5,2918.3,1.28351169]
[1644738030631,1.4578739,2918.4,2918.3,1.28351169]
[1644738031031,1.4578739,2918.4,2918.3,0.98351169]
[1644738031832,0.0109072,2918.5,2918.3,0.98351169]
[1644738032032,1.4578739,2918.4,2918.3,0.98351169]
[1644738032232,1.4578739,2918.4,2918.3,1.28351169]
[1644738033532,1.4578739,2918.4,2918.3,4.39284867]
[1644738033933,0.0109072,2918.5,2918.3,5.39284867]
[1644738034184,0.00385393,2918.8,2918.4,3.08564094]
[1644738034389,0.0109072,2918.5,2918.3,2.28251487]
[1644738034593,1.45789167,2918.4,2918.3,1.28251487]
[1644738034788,1.45789167,2918.4,2918.2,0.7274162]
[1644738034988,1.45789167,2918.4,2918.0,0.796]
[1644738035190,1.4617456,2918.4,2918.0,0.796]
[1644738035392,0.00385393,2918.4,2918.0,0.96809129]
[1644738035591,0.01090741,2918.3,2918.1,4.31430394]
[1644738035789,0.01090741,2918.3,2918.1,5.13353564]
[1644738035990,0.01090741,2918.3,2918.2,3.0866228]
[1644738036391,0.01090741,2918.3,2918.2,4.0866228]
[1644738036589,0.02955534,2918.4,2918.2,4.0866228]
[1644738036792,0.04046268,2918.4,2918.3,1.0]
[1644738037090,0.04046268,2918.4,2918.1,2.03482687]
[1644738037290,1.45791977,2918.3,2918.1,2.03482687]
[1644738037490,0.04046268,2918.4,2918.1,2.03482687]
[1644738037491,0.04046268,2918.4,2918.1,2.33482687]
[1644738037693,0.02955534,2918.4,2918.2,3.07556975]
[1644738037933,0.02955534,2918.4,2918.3,1.0]
[1644738038129,0.02955534,2918.4,2918.2,3.07556975]
[1644738039038,0.04046261,2918.4,2918.2,3.07556975]
[1644738040036,0.02955534,2918.4,2918.2,3.07556975]
[1644738040233,0.04046261,2918.4,2918.2,3.07556975]
[1644738040634,0.05062594,2918.4,2918.2,3.07556975]
[1644738041235,0.03971867,2918.4,2918.2,3.07556975]
[1644738041435,0.03971867,2918.4,2918.3,1.0]
[1644738041694,0.05062594,2918.4,2918.3,4.20272435]
[1644738041887,1.50845756,2918.4,2918.3,1.0]
[1644738042191,0.05062594,2918.4,2918.3,4.371187]
[1644738042388,0.04362253,2918.9,2918.4,2.7]
[1644738042587,1.45769939,2918.8,2918.5,4.37779681]
[1644738042788,1.45769939,2918.7,2918.6,0.3]